Cogmind - Beta 15 *** ADVENTURER MODE // 2025.10.01 @ 14:51:15 Player: [THREAT] Result: Self-destructed Performance ------------- Evolutions (1) 500 Regions Visited (2) 400 Robots Destroyed (56) 280 Value Destroyed (646) 646 Prototype IDs (0) 0 Alien Tech Used (0) 0 Bonus (0) 0 TOTAL SCORE: 1826 Bonus ------- None Cogmind --------- Core Integrity 353/400 Matter 300/300 Energy 125/125 System Corruption 0% Temperature Cool (18) Movement Walking (190) Ox1 Location -9/Materials Parts ------- > --- POWER (1) -------- Light Ion Engine > --- PROPULSION (2) --- Aluminum Leg > --- UTILITY (4) ------ Heat Sink Medium Storage Unit > --- WEAPON (2) ------- Medium Laser Medium Laser > --- INVENTORY (10) --- Light Ion Engine Improved Terrain Scanner Grenade Launcher Datajack Peak State ------------ > --- POWER ------------ Ion Engine > --- PROPULSION ------- Aluminum Leg Aluminum Leg > --- UTILITY ---------- Small Storage Unit Medium Storage Unit > --- WEAPON ----------- Assault Rifle Assault Rifle > --- INVENTORY -------- Light Ion Engine Improved Terrain Scanner Medium Laser Grenade Launcher [Rating: 7] Favorites ----------- Power Ion Engine Engine Ion Engine Propulsion Aluminum Leg Leg Aluminum Leg Utility Medium Storage Unit Device Tractor Beam Storage Medium Storage Unit Weapon Assault Rifle Energy Gun Medium Laser Ballistic Gun Assault Rifle Launcher Grenade Launcher Build | -11 -10 -9 ------- Run | Yrd Mat Mat Slots Evolved 2 | . . 2 Power . | . . . Propulsion . | . . . Utility 2 | . . 2 Weapon . | . . . Parts Attached 14 | 6 3 5 Power 2 | 1 . 1 Engine 2 | 1 . 1 Core . | . . . Reactor . | . . . Propulsion 3 | 2 1 . Treads . | . . . Leg 3 | 2 1 . Wheel . | . . . Hover . | . . . Flight . | . . . Utility 4 | 1 2 1 Device 2 | . 1 1 Storage 2 | 1 1 . Processor . | . . . Hackware . | . . . Protection . | . . . Artifact . | . . . Weapon 5 | 2 . 3 Energy Gun 2 | . . 2 Energy Cannon . | . . . Ballistic Gun 2 | 2 . . Ballistic Cannon . | . . . Launcher 1 | . . 1 Special Weapon . | . . . Impact Weapon . | . . . Slashing Weapon . | . . . Piercing Weapon . | . . . Special Melee Weapon . | . . . Unidentified Prototypes . | . . . Parts Lost 5 | . . 5 Power 1 | . . 1 Propulsion 1 | . . 1 Utility 1 | . . 1 Weapon 2 | . . 2 Highest Loss Streak 3 | . . 3 To Critical Strikes . | . . . Average Backups 4 | 1 4 4 Power . | . 1 1 Propulsion . | . . . Utility 1 | . 1 1 Weapon 1 | . 2 1 Tool/Special . | . . . Unused Backups 4 | . 1 3 Power 1 | . . 1 Propulsion . | . . . Utility 3 | . 1 2 Weapon . | . . . Tool/Special . | . . . Average Slot Usage (%) 85 | . 90 72 Engine 12 | . 14 9 Leg 24 | . 28 15 Device 8 | . 5 14 Storage 13 | . 14 11 Energy Gun 4 | . . 14 Ballistic Gun 21 | . 28 6 Peak Build Rating 7 | 6 7 7 Average Rating 6 | 5 6 6 On Entrance 4 | . 6 7 Naked Turns . | . . . Heaviest Build 20 | 14 20 20 Greatest Support 20 | 20 20 20 Greatest Overweight (x) 1 | 1 . 1 Average Overweight (x) . | . . . Largest Inventory Capacity 10 | 8 10 10 Average Capacity 9 | 7 9 10 Most Carried 8 | 5 7 8 Average Carried 4 | 1 4 4 Final Capacity 10 | 8 10 10 Final Carried 7 | 3 7 4 Class Distribution -------------------- 100% | Mutant Dominant Class ---------------- Mutant | -10/Materials Mutant | -9/Materials Resources | -11 -10 -9 ----------- Run | Yrd Mat Mat Matter Collected 1002 | 303 515 184 Remotely 296 | . 171 125 Salvage Created 1452 | 208 858 386 Parts 122 | 19 68 35 Haulers Intercepted 1 | . 1 . Recyclers Shooed 2 | . 1 1 Parts Field Recycled . | . . . Retrieved Matter . | . . . Parts Self-Destructed . | . . . Prevented . | . . . Kills | -11 -10 -9 ------- Run | Yrd Mat Mat Combat Hostiles Destroyed 17 | . 8 9 Guns 11 | . 8 3 AOE 6 | . . 6 Classes Destroyed 10 | 3 5 2 Worker 15 | 2 12 1 Builder 3 | . 1 2 Tunneler 7 | 5 1 1 Hauler 1 | . 1 . Recycler 7 | 1 4 2 Operator 1 | . . 1 Watcher 5 | . 3 2 Swarmer 9 | . 3 6 Grunt 6 | . 5 1 Sentry 2 | . . 2 Best Kill Streak 14 | 5 14 9 Combat Bots Only 7 | . 4 7 Max Kills in Single Turn 3 | 2 2 3 Gunslinging . | . . . Exploded 2 | . . 2 Melee . | . . . Uniques/NPCs Destroyed . | . . . Combat | -11 -10 -9 -------- Run | Yrd Mat Mat Hostile Shots Fired 124 | . 67 57 Missed 41 | . 16 25 Hits 83 | . 51 32 Projectile 83 | . 51 32 Critical Strikes 1 | . . 1 Damage Taken 736 | . 375 361 Core 117 | . 70 47 Absorbed by Shields . | . . . Ignored by Resistances 231 | . 123 108 Core Remaining (%) 86 | 100 72 . Volleys Fired 103 | 8 62 33 Largest 2 | 2 2 2 Hottest 100 | 40 40 100 Shots Fired 199 | 16 125 58 Gun 193 | 16 125 52 Cannon . | . . . Launcher 6 | . . 6 Special . | . . . Kinetic 159 | 16 125 18 Thermal 34 | . . 34 Explosive 6 | . . 6 Electromagnetic . | . . . Robot Hit Streak 15 | 10 15 13 Robot Miss Streak 4 | 1 3 4 Penetration Max . | . . . Secondary Targets 2 | . 2 . Max Gunslinging Chain 1 | . 1 . Shots Hit Robots 134 | 12 86 36 Core Hits 70 | 9 37 24 Critical Kills 1 | . 1 . Critical Parts Destroyed 4 | . 4 . Critical Strikes 9 | . 5 4 Burn 4 | . . 4 Destroy 5 | . 5 . Melee Attacks . | . . . Impact . | . . . Slashing . | . . . Piercing . | . . . Sneak Attacks . | . . . Combat Hostiles . | . . . Follow-up Attacks . | . . . Damage Inflicted 2242 | 161 1108 973 Guns 1707 | 161 1108 438 Cannons . | . . . Explosions 535 | . . 535 Melee . | . . . Ramming . | . . . Kinetic 1383 | 161 1108 114 Thermal 474 | . . 474 Explosive 385 | . . 385 Electromagnetic . | . . . Impact . | . . . Slashing . | . . . Piercing . | . . . Highest Corruption 1 | . 1 . Average Corruption 1 | . 1 . Corruption Purged . | . . . Corruption Blocked . | . . . Effects 2 | . 2 . Matter Fused 1 | . 1 . Misfires 1 | . 1 . Overload Shots . | . . . Overflow Damage 75 | . . 75 Projectiles . | . . . Explosions 75 | . . 75 Melee . | . . . Knockbacks . | . . . Impact . | . . . Kinetic . | . . . Secondary . | . . . Self-Inflicted Damage 126 | . . 126 Shots 2 | . . 2 Rammed . | . . . Targets Rammed . | . . . Kicked . | . . . Crushed . | . . . Highest Temperature 222 | . 5 222 Average Temperature 68 | . 4 77 Received Heat Transfer 261 | . 174 87 Effects 2 | . . 2 Interference 2 | . . 2 Siege Activations . | . . . Martial Activations . | . . . Shielding Activations . | . . . Robots Disrupted . | . . . Combat Hostiles . | . . . Robots Corrupted . | . . . Combat Hostiles . | . . . Parts Fried . | . . . Impact Corruptions . | . . . Robots Melted . | . . . Combat Hostiles . | . . . Parts Melted 6 | . . 6 Heat Transferred 1358 | . . 1358 Parts Sabotaged . | . . . Parts Stolen . | . . . Parts Stripped . | . . . Power Chain Reactions . | . . . Alert | -11 -10 -9 ------- Run | Yrd Mat Mat Maximum Alert Level 1 | . . 1 Low Security (%) 80 | 100 100 22 Level 1 19 | . . 77 Level 2 . | . . . Level 3 . | . . . Level 4 . | . . . Level 5 . | . . . High Security . | . . . Max Security . | . . . Peak Influence 286 | 15 164 286 Initial 43 | . 5 43 Average 129 | 5 113 235 Influence Increases 754 | 40 341 373 Destroy 0b10 Robot/C 340 | . 160 180 Destroy 0b10 Robot/NC 195 | 40 110 45 Destroy Leader 92 | . 38 54 Successful Hack 3 | . 3 . Disable Machine 27 | . . 27 Destroy Structure 67 | . . 67 Lose Combat Pursuer 30 | . 30 . Influence Decreases 478 | 30 230 218 Entered New Map 83 | . 5 78 Time Decay 345 | 30 225 90 Lost Part 50 | . . 50 Squads Dispatched 3 | . 2 1 Investigation 2 | . 2 . Extermination . | . . . Reinforcement 1 | . . 1 Assault . | . . . Garrison . | . . . Intercept . | . . . Searches Triggered . | . . . Construction Impeded . | . . . Haulers Reinforced . | . . . Active Scanning Responses . | . . . Cargo Convoy Interrupts . | . . . Stealth | -11 -10 -9 --------- Run | Yrd Mat Mat Distress Signals 3 | . 2 1 Communications Jammed . | . . . Distress Signals . | . . . Times Spotted 26 | . 13 13 Peak Tracking Total 5 | . 5 5 Tactical Retreats 1 | . 1 . Traps | -11 -10 -9 ------- Run | Yrd Mat Mat Traps Triggered . | . . . Indirectly . | . . . Trap Hack Attempts . | . . . Triggered . | . . . Disarmed . | . . . Reprogrammed . | . . . Reused . | . . . Traps Extracted . | . . . Installed . | . . . Triggered . | . . . Machines | -11 -10 -9 ---------- Run | Yrd Mat Mat Machines Disabled 3 | . . 3 Max in Single Turn 3 | . . 3 Machines Repaired . | . . . Machines Dismantled . | . . . Machines Sabotaged . | . . . Overloaded Fab Kills . | . . . Hacking | -11 -10 -9 --------- Run | Yrd Mat Mat Machines Accessed 3 | . 3 . Terminals 2 | . 2 . Fabricators . | . . . Repair Stations . | . . . Recycling Units 1 | . 1 . Scanalyzers . | . . . Garrison Access . | . . . Total Hacks 11 | . 11 . Successful 6 | . 6 . Failed 5 | . 5 . Catastrophic . | . . . Database Lockouts . | . . . Manual 2 | . 2 . Terminals 6 | . 6 . Fabricators . | . . . Repair Stations . | . . . Recycling Units 5 | . 5 . Scanalyzers . | . . . Garrison Access . | . . . Terminal Hacks 1 | . 1 . Locate Traps 1 | . 1 . Fabricator Hacks . | . . . Repair Station Hacks . | . . . Recycling Unit Hacks 4 | . 4 . Report Inventory 1 | . 1 . Retrieve Matter 2 | . 2 . Retrieve Components 1 | . 1 . Scanalyzer . | . . . Garrison Access Hacks . | . . . Unauthorized Hacks 1 | . 1 . Terminals 1 | . 1 . Botnet 1 | . 1 . Fabricators . | . . . Repair Stations . | . . . Recycling Units . | . . . Scanalyzers . | . . . Garrison Access . | . . . Data Cores Recovered . | . . . Used . | . . . Hacking Detections 3 | . 3 . Full Trace Events 1 | . 1 . Feedback Events 1 | . 1 . Corruption 1 | . 1 . Feedback Blocked . | . . . Robot Schematics Acquired . | . . . Robots Built . | . . . Authchips . | . . . Time . | . . . Total Robot Build Rating . | . . . Part Schematics Acquired . | . . . Parts Built . | . . . Authchips . | . . . Time . | . . . Total Part Build Rating . | . . . Parts Repaired . | . . . Time . | . . . Parts Recycled . | . . . Recycled Matter . | . . . Retrieved Matter . | . . . Retrieved Components 2 | . 2 . Parts Scanalyzed . | . . . Part Schematics Acquired . | . . . Parts Damaged . | . . . Bothacking | -11 -10 -9 ------------ Run | Yrd Mat Mat Used RIF Installer . | . . . Robots Hacked . | . . . Non-combat . | . . . Combat . | . . . Robot Hacks Applied . | . . . Relay Couplers Released . | . . . Fabnet Peak Effective % . | . . . Robots Rewired . | . . . Allies Hacked . | . . . Hacks Repelled . | . . . Allies | -11 -10 -9 -------- Run | Yrd Mat Mat Total Allies . | . . . Largest Group . | . . . Highest-Rated Group . | . . . Highest-Rated Ally . | . . . Total Orders . | . . . Ally Attacks . | . . . Total Damage . | . . . Kills . | . . . Allies Corrupted . | . . . Allies Melted . | . . . Intel | -11 -10 -9 ------- Run | Yrd Mat Mat Active Infowar (turns) . | . . . Robot Analysis Total . | . . . Derelict Logs Recovered . | . . . Drone Launches . | . . . Drone Recoveries . | . . . Exploration | -11 -10 -9 ------------- Run | Yrd Mat Mat Turns Passed 780 | 108 474 198 Spaces Moved 340 | 60 228 52 Core 7 | 7 . . Treads . | . . . Legs 333 | 53 228 52 Wheels . | . . . Hover . | . . . Flight . | . . . Fastest Speed 50 | 50 120 120 Average Speed 127 | 115 120 176 Slowest Speed 190 | 190 120 190 Overloaded Moves . | . . . Propulsion Burnouts . | . . . Robots Hopped . | . . . Potential Cave-ins . | . . . Cave-ins Triggered . | . . . Exploration Rate (%) 20 | 3 49 8 Regions Visited 2 Branch Regions . Pre-discovered Areas . | . . . Known Exits Taken . | . . . Unknown Exits Taken 2 | 1 1 . Scrap Searched . | . . . Spaces Dug . | . . . Terrain Destroyed 76 | . . 76 Melee . | . . . Projectile . | . . . AOE 76 | . . 76 Terrain Rammed . | . . . Walls Destroyed . | . . . Machines Disabled . | . . . Actions | -11 -10 -9 --------- Run | Yrd Mat Mat Total 485 | 82 305 98 Wait 4 | . 2 2 Move 338 | 59 227 52 Hop . | . . . Pick Up 19 | 9 8 2 Fast Attach . | . . . Attach 12 | 6 2 4 Detach . | . . . Swap 5 | . 1 4 Drop 4 | . 3 1 Fire 103 | 8 62 33 Melee . | . . . Ram . | . . . Kick . | . . . Crush . | . . . Escape Stasis . | . . . Rewire . | . . . Trap . | . . . Miscellaneous . | . . . Route ------- -11/Scrapyard -10/Materials (discovered 4 exits: [*Mat x2] / [*Min x2]) -9/Materials History --------- Turn | Location | Event 4 | -11/Scrapyard | Discovered new exit (range 16) 109 | -11/Scrapyard | Entered Materials 110 | -10/Materials | Met a group of wandering Federalists 128 | -10/Materials | Discovered new exit (range 15) 267 | -10/Materials | Discovered new exit (range 9) 301 | -10/Materials | Build established: Mutant 329 | -10/Materials | Discovered new exit (range 7) 336 | -10/Materials | Discovered new exit (range 15) 583 | -10/Materials | Entered another Materials area 583 | -9/Materials | Evolved 2 slots: Utility x2 653 | -9/Materials | Destroyed 7 combat bots 681 | -9/Materials | Lost 3 parts (1n2w) 781 | -9/Materials | Self-destructed Last Messages --------------- K-01 Serf collects debris. U-05 Engineer lays Concrete. U-05 Engineer builds a Door. U-05 Engineer lays Concrete. U-05 Engineer builds a Wall. W-16 Scout distress signal alerts nearby ally. U-05 Engineer builds a Wall. U-05 Engineer lays Concrete. W-16 Scout destroyed. U-05 Engineer lays Concrete. U-05 Engineer builds a Wall. U-05 Engineer lays Concrete. Tractor Beam destroyed. U-05 Engineer lays Concrete. Y-45 Defender suffers critical hit (Burn). Beam Rifle melted. Heat Sink melted. Y-45 Defender destroyed. U-05 Engineer lays Concrete. [Achievement: Just Browsing] Map ----- +----------------------------------------------------+ | ?????????????????????????????????????????????????? | | ?????????????????????????????????????????????????? | | ?????????????????????????????????????????????????? | | ?????????????????????????????????????????????????? | | ?????????????????????????????????????????????????? | | ?????????????????????????????????????????????????? | | ?????????????????????????????????????????????????? | | ?????????????????????????????????????????????????? | | ?????????????????????????????????????????????????? | | ?????????????????????????????????????????????????? | | ?????????????????????????????????????????????????? | | ?????????????????????????????????????????????????? | | ?????????????????????????????????????????????????? | | ?????????????????????????????????????????????????? | | ?????????????????????????????????????????????????? | | ?????????????????????????????????????????????????? | | ???????????????????###########???????????????????? | | ?????# ##########??# #???????????????????? | | ?????# #??# #???????????????????? | | ?????+ ! #??#|[ +???????????????????? | | ?????# =** #??#| """ #???????????????????? | | ?????########% #??# """m#???????????????????? | | ????????????#=%=#??# """ #???????????????????? | | ????######??#=*=#### % #???????????????????? | | ????# ?##|%=## ##??????????????????? | | ????# # !%%########@############### ??????? | | ????# # = = ??????? | | ????# """ " !%= * [ T?????? | | ????# """ # *%[ u ! ??????? | | ????# """ # ==### ## ## #"######?????????? | | ????# ?#### ## #### [# ;;""#????????????? | | ????# ????# #### #?# # ##???????????? | | ????#####?????# ??###?# #! #???????????? | | ??????????????#+##?????# # #???????????? | | ???????????????????????# # #???????????? | | ???????????????????????# # #??????????? | | ???????????????????????# +/ u ##??????????? | | ???????????????????????# # " #??????????? | | ???????????????????????# # " #??????????? | | ???????????????????????# # "##??????????? | | ???????????????????????#####"""""""""#???????????? | | ????????????????????????????## # ####???????????? | | ??????????????????????????????#####??????????????? | | ?????????????????????????????????????????????????? | | ?????????????????????????????????????????????????? | | | | | | | | | | | +----------------------------------------------------+ Best States ------------- Heat Dissipation 38 Energy Generation 10 Energy Capacity 250 Matter Stores 300 Matter Capacity 300 Sight Range 16 Terrain Scan Density 10 Resistance: KI 20 Resistance: TH 20 Resistance: EX 20 Resistance: EM 20 Resistance: I 20 Resistance: S 20 Resistance: P 20 Evasion (%) 55 Offensive Hacking 10 Item Schematics ----------------- None Robot Schematics ------------------ None Fabricated ------------ Nothing Repaired ---------- Nothing Alien Tech Used ----------------- None Achievements -------------- Just Browsing Challenges ------------ None Game ------ Seed PersonalVampiricAutobeam Manual? 0 Play Time 00:07:38 Cumulative 68.7 hours Start 2025.10.01 @ 14:43:45 End 2025.10.01 @ 14:51:15 Sessions 1 Manual Loads 0 Difficulty Adventurer Special Mode None Game No. 20 Rogue 0 Adventurer 20 Explorer 0 Win Type - Total 1 Types 1/0/0/0/0/0/0/0/0/0 Lore% 23 Gallery% 26 Achievement% 43 Wizard Run 0 Options --------- Layout 2 ASCII 0 Keyboard 0 Movement Numpad Keybinds 0 Fullscreen 1 Font 16/SmallcapsGlow Map View 25x24 Zoom Use 44% Tactical HUD 0 Map Filters NONE Filters NONE Steam 1 RUN: 35acac52-a339-429d-b8d8-cecd4fc62190